fUSD/lending_fUSD_20240409
["ID","MTS","AMOUNT","RATE_DAILY","PERIOD"]
[321996857,1712678295002,189.45,0.00014368,2]
[321996858,1712678361824,163.51,0.00014335,2]
[321996859,1712678362072,163.51,0.00016127,2]
[321996860,1712678362277,163.51,0.00017919,2]
[321996861,1712678429389,4559.58,0.0001793,2]
[321996862,1712678440941,23900.0,0.00017939,2]
[321996865,1712678505559,705.62,0.000225,10]
[321996866,1712678509502,150.0,0.00017958,2]
[321996867,1712678551456,500.0,0.0001795,2]
[321996868,1712678576940,-1062.06209167,0.00018118,2]
[321996869,1712678576967,-159.79,0.00018119,2]
[321996870,1712678576988,-200.0,0.00018119,2]
[321996871,1712678577011,-2088.98,0.00018196,2]
[321996872,1712678577036,-173.67,0.00018248,2]
[321996873,1712678577063,-155.81,0.00018255,2]
[321996874,1712678577086,-156.23,0.00018303,2]
[321996875,1712678577111,-155.81,0.00018445,2]
[321996876,1712678577134,-153.19839526,0.00018492,2]
[321996877,1712678577158,-733.82250985,0.00018592,2]
[321996878,1712678577181,-150.0,0.00018592,2]
[321996879,1712678577204,-150.0,0.00018592,2]
[321996880,1712678577227,-499.99,0.00018592,2]
[321996881,1712678577248,-7773.43,0.00018593,2]
[321996882,1712678577268,-765.95,0.00018593,2]
[321996883,1712678577290,-155.81,0.00018635,2]
[321996884,1712678577311,-448.66,0.00018678,2]
[321996885,1712678577333,-940.0,0.00018801,2]
[321996886,1712678577353,-155.81,0.00018826,2]
[321996887,1712678577374,-6829.1,0.00018838,2]
[321996888,1712678577393,-1305.8776,0.00018877,2]
[321996889,1712678577414,-355.17528801,0.00018877,2]
[321996890,1712678577434,-2500.0,0.00018877,2]
[321996891,1712678577455,-56919.7873,0.00018877,2]
[321996892,1712678577477,-9983.10690687,0.00018878,2]
[321996893,1712678577498,-7982.45565604,0.00018878,2]
[321996894,1712678577521,-3147.828008,0.00018878,2]
[321996895,1712678577543,-11975.42490197,0.000189,2]
[321996896,1712678577566,-622.33056216,0.00018976,2]
[321996897,1712678577587,-418.3826,0.00018977,2]
[321996898,1712678577608,-245000.0,0.00018977,2]
[321996899,1712678577629,-323.47579,0.00018978,2]
[321996900,1712678577654,-206.35448217,0.00019003,2]
[321996901,1712678577965,-5664.0145999,0.00019003,2]
[321996902,1712678577996,-155.81,0.00019016,2]
[321996903,1712678578017,-25384.91397876,0.00019068,2]
[321996904,1712678578039,-179.71752547,0.00019077,2]
[321996905,1712678578063,-527481.64274602,0.00019077,2]
[321996906,1712678578086,-2460.6173,0.00019078,2]
[321996907,1712678578109,-86862.2788,0.00019078,2]
[321996908,1712678578132,-151.1564,0.00019078,2]
[321996909,1712678578154,-92552.01,0.00019078,2]
[321996910,1712678578179,-9983.10690687,0.00019103,2]
[321996911,1712678578203,-7982.45565602,0.00019103,2]
[321996912,1712678578228,-3147.82800798,0.00019167,2]
[321996913,1712678578249,-1000.0,0.00019177,2]
[321996914,1712678578270,-500.0,0.00019178,2]
[321996915,1712678578291,-500.0,0.00019178,2]
[321996916,1712678578311,-500.0,0.00019178,2]
[321996917,1712678578332,-500.0,0.00019178,2]
[321996918,1712678578352,-500.0,0.00019178,2]
[321996919,1712678578373,-500.0,0.00019178,2]
[321996920,1712678578394,-500.0,0.00019178,2]
[321996921,1712678578414,-500.0,0.00019178,2]
[321996922,1712678578436,-500.0,0.00019178,2]
[321996923,1712678578458,-500.0,0.00019178,2]
[321996924,1712678578480,-500.29787868,0.00019178,2]
[321996925,1712678578500,-500.0,0.00019178,2]
[321996926,1712678578521,-541.99,0.00019178,2]
[321996927,1712678578544,-500.0,0.00019178,2]
[321996928,1712678578565,-500.0,0.00019178,2]
[321996929,1712678578586,-500.0,0.00019178,2]
[321996930,1712678578607,-500.0,0.00019178,2]
[321996931,1712678578631,-500.0,0.00019178,2]
[321996932,1712678578653,-500.0,0.00019178,2]
[321996933,1712678578673,-500.0,0.00019178,2]
[321996934,1712678578694,-500.0,0.00019178,2]
[321996935,1712678578717,-500.0,0.00019178,2]
[321996936,1712678578736,-500.0,0.00019178,2]
[321996937,1712678578756,-500.0,0.00019178,2]
[321996938,1712678578777,-455.32227844,0.00019178,2]
[321996939,1712678578797,-500.0,0.00019178,2]
[321996940,1712678578818,-501.28,0.00019178,2]
[321996941,1712678578839,-538.41,0.00019178,2]
[321996942,1712678578861,-500.0,0.00019178,2]
[321996943,1712678578883,-275.68956179,0.00019178,2]
[321996944,1712678578904,-500.0,0.00019178,2]
[321996945,1712678578925,-500.0,0.00019178,2]
[321996946,1712678578945,-500.0,0.00019178,2]
[321996947,1712678578968,-500.0,0.00019178,2]
[321996948,1712678578988,-500.0,0.00019178,2]
[321996949,1712678579009,-500.0,0.00019178,2]
[321996950,1712678579030,-500.0,0.00019178,2]
[321996951,1712678579053,-500.0,0.00019178,2]
[321996952,1712678579076,-500.0,0.00019178,2]
[321996953,1712678579097,-500.0,0.00019178,2]
[321996954,1712678579118,-500.0,0.00019178,2]
[321996955,1712678579140,-500.0,0.00019178,2]
[321996956,1712678579166,-500.0,0.00019178,2]
[321996957,1712678579186,-500.0,0.00019178,2]
[321996958,1712678579209,-500.0,0.00019178,2]
[321996959,1712678579232,-891.9,0.00019178,2]
[321996960,1712678579254,-500.0,0.00019178,2]
[321996961,1712678579276,-500.0,0.00019178,2]
[321996962,1712678579297,-500.0,0.00019178,2]
[321996963,1712678579319,-500.0,0.00019178,2]
[321996964,1712678579342,-500.0,0.00019178,2]
[321996965,1712678579366,-500.0,0.00019178,2]
[321996966,1712678579389,-500.0,0.00019178,2]
[321996967,1712678579412,-500.0,0.00019178,2]
[321996968,1712678579434,-500.0,0.00019178,2]
[321996969,1712678579459,-500.0,0.00019178,2]
[321996970,1712678579480,-500.0,0.00019178,2]
[321996971,1712678579503,-500.0,0.00019178,2]
[321996972,1712678579526,-500.0,0.00019178,2]
[321996973,1712678579549,-611.67125189,0.00019178,2]
[321996974,1712678579569,-652.69,0.00019178,2]
[321996975,1712678579590,-500.0,0.00019178,2]
[321996976,1712678579612,-500.0,0.00019178,2]
[321996977,1712678579634,-286.60156863,0.00019178,2]
[321996978,1712678579656,-500.0,0.00019178,2]
[321996979,1712678579678,-500.0,0.00019178,2]
[321996980,1712678579700,-740.9,0.00019178,2]
[321996981,1712678579720,-537.99,0.00019178,2]
[321996982,1712678579741,-1103.54,0.00019178,2]
[321996983,1712678579763,-500.0,0.00019178,2]
[321996984,1712678579784,-500.0,0.00019178,2]
[321996985,1712678579805,-500.0,0.00019178,2]
[321996986,1712678579826,-500.0,0.00019178,2]
[321996987,1712678579847,-500.0,0.00019178,2]
[321996988,1712678579867,-500.0,0.00019178,2]
[321996989,1712678579888,-1190.42,0.00019178,2]
[321996990,1712678579910,-500.0,0.00019178,2]
[321996991,1712678579930,-500.0,0.00019178,2]
[321996992,1712678579951,-500.0,0.00019178,2]
[321996993,1712678579971,-500.0,0.00019178,2]
[321996994,1712678579992,-500.0,0.00019178,2]
[321996995,1712678580013,-1063.88,0.00019178,2]
[321996996,1712678580034,-787.93,0.00019178,2]
[321996997,1712678580055,-500.0,0.00019178,2]
[321996998,1712678580078,-500.0,0.00019178,2]
[321996999,1712678580099,-500.0,0.00019178,2]
[321997000,1712678580119,-500.0,0.00019178,2]
[321997001,1712678580141,-500.0,0.00019178,2]
[321997002,1712678580166,-500.0,0.00019178,2]
[321997003,1712678580187,-500.0,0.00019178,2]
[321997004,1712678580208,-500.0,0.00019178,2]
[321997005,1712678580229,-756.38,0.00019178,2]
[321997006,1712678580250,-529.12,0.00019178,2]
[321997007,1712678580271,-715.58,0.00019178,2]
[321997008,1712678580292,-501.73344461,0.00019178,2]
[321997009,1712678580312,-500.0,0.00019178,2]
[321997010,1712678580333,-807.22,0.00019178,2]
[321997011,1712678580353,-500.0,0.00019178,2]
[321997012,1712678580374,-500.0,0.00019178,2]
[321997013,1712678580394,-500.0,0.00019178,2]
[321997014,1712678580414,-612.48,0.00019178,2]
[321997015,1712678580435,-500.0,0.00019178,2]
[321997016,1712678580457,-500.0,0.00019178,2]
[321997017,1712678580477,-500.0,0.00019178,2]
[321997018,1712678580496,-500.0,0.00019178,2]
[321997019,1712678580517,-500.0,0.00019178,2]
[321997020,1712678580537,-500.0,0.00019178,2]
[321997021,1712678580557,-500.0,0.00019178,2]
[321997022,1712678580577,-511.31,0.00019178,2]
[321997023,1712678580598,-500.0,0.00019178,2]
[321997024,1712678580618,-500.0,0.00019178,2]
[321997025,1712678580639,-572.0,0.00019178,2]
[321997026,1712678580660,-584.03369487,0.00019178,2]
[321997027,1712678580681,-500.0,0.00019178,2]
[321997028,1712678580703,-500.0,0.00019178,2]
[321997029,1712678580725,-500.0,0.00019178,2]
[321997030,1712678580748,-500.0,0.00019178,2]
[321997031,1712678580768,-555.86,0.00019178,2]
[321997032,1712678580788,-500.0,0.00019178,2]
[321997033,1712678580809,-500.0,0.00019178,2]
[321997034,1712678580831,-232.41,0.00019178,2]
[321997035,1712678580852,-500.0,0.00019178,2]
[321997036,1712678580872,-500.0,0.00019178,2]
[321997037,1712678580893,-500.0,0.00019178,2]
[321997038,1712678580914,-500.0,0.00019178,2]
[321997039,1712678580935,-552.21,0.00019178,2]
[321997040,1712678580958,-500.0,0.00019178,2]
[321997041,1712678580979,-500.0,0.00019178,2]
[321997042,1712678581001,-810.81,0.00019178,2]
[321997043,1712678581022,-500.0,0.00019178,2]
[321997044,1712678581043,-500.0,0.00019178,2]
[321997045,1712678581069,-500.0,0.00019178,2]
[321997046,1712678581090,-500.0,0.00019178,2]
[321997047,1712678581111,-500.0,0.00019178,2]
[321997048,1712678581131,-500.0,0.00019178,2]
[321997049,1712678581152,-500.0,0.00019178,2]
[321997050,1712678581172,-500.0,0.00019178,2]
[321997051,1712678581193,-500.0,0.00019178,2]
[321997052,1712678581215,-500.0,0.00019178,2]
[321997053,1712678581237,-500.0,0.00019178,2]
[321997054,1712678581458,-500.0,0.00019178,2]
[321997055,1712678581481,-500.0,0.00019178,2]
[321997056,1712678581501,-582.46,0.00019178,2]
[321997057,1712678581522,-500.0,0.00019178,2]
[321997058,1712678581543,-632.13,0.00019178,2]
[321997059,1712678581564,-521.68,0.00019178,2]
[321997060,1712678581584,-568.45,0.00019178,2]
[321997061,1712678581605,-500.0,0.00019178,2]
[321997062,1712678581627,-500.0,0.00019178,2]
[321997063,1712678581647,-1283.11,0.00019178,2]
[321997064,1712678581668,-500.0,0.00019178,2]
[321997065,1712678581689,-500.0,0.00019178,2]
[321997066,1712678581713,-706.29,0.00019178,2]
[321997067,1712678581734,-500.0,0.00019178,2]
[321997068,1712678581754,-500.0,0.00019178,2]
[321997069,1712678581775,-500.0,0.00019178,2]
[321997070,1712678581796,-535.74,0.00019178,2]
[321997071,1712678581818,-693.87,0.00019178,2]
[321997072,1712678581841,-500.0,0.00019178,2]
[321997073,1712678581863,-500.0,0.00019178,2]
[321997074,1712678581885,-921.17,0.00019178,2]
[321997075,1712678581906,-638.09,0.00019178,2]
[321997076,1712678581928,-500.0,0.00019178,2]
[321997077,1712678581952,-500.0,0.00019178,2]
[321997078,1712678581972,-500.0,0.00019178,2]
[321997079,1712678581993,-500.0,0.00019178,2]
[321997080,1712678582014,-851.86,0.00019178,2]
[321997081,1712678582036,-500.0,0.00019178,2]
[321997082,1712678582059,-500.0,0.00019178,2]
[321997083,1712678582082,-500.0,0.00019178,2]
[321997084,1712678582104,-500.0,0.00019178,2]
[321997085,1712678582129,-1017.55,0.00019178,2]
[321997086,1712678582151,-500.0,0.00019178,2]
[321997087,1712678582174,-500.0,0.00019178,2]
[321997088,1712678582197,-629.84,0.00019178,2]
[321997089,1712678582222,-500.0,0.00019178,2]
[321997090,1712678582242,-500.0,0.00019178,2]
[321997091,1712678582264,-601.43,0.00019178,2]
[321997092,1712678582287,-519.09,0.00019178,2]
[321997093,1712678582308,-500.0,0.00019178,2]
[321997094,1712678582330,-500.0,0.00019178,2]
[321997095,1712678582351,-500.0,0.00019178,2]
[321997096,1712678582371,-503.15775522,0.00019178,2]
[321997097,1712678582392,-500.0,0.00019178,2]
[321997098,1712678582414,-436.01999057,0.00019178,2]
[321997099,1712678582440,-670.03,0.00019178,2]
[321997100,1712678582467,-500.0,0.00019178,2]
[321997101,1712678582490,-500.0,0.00019178,2]
[321997102,1712678582511,-500.0,0.00019178,2]
[321997103,1712678582535,-500.0,0.00019178,2]
[321997104,1712678582559,-500.0,0.00019178,2]
[321997105,1712678582581,-500.0,0.00019178,2]
[321997106,1712678582603,-678.72,0.00019178,2]
[321997107,1712678582625,-500.0,0.00019178,2]
[321997108,1712678582646,-805.7,0.00019178,2]
[321997109,1712678582668,-500.0,0.00019178,2]
[321997110,1712678582689,-500.0,0.00019178,2]
[321997111,1712678582712,-500.0,0.00019178,2]
[321997112,1712678582733,-500.0,0.00019178,2]
[321997113,1712678582755,-500.0,0.00019178,2]
[321997114,1712678582775,-500.0,0.00019178,2]
[321997115,1712678582797,-500.0,0.00019178,2]
[321997116,1712678582818,-500.0,0.00019178,2]
[321997117,1712678582839,-663.67,0.00019178,2]
[321997118,1712678582861,-649.16,0.00019178,2]
[321997119,1712678582885,-500.0,0.00019178,2]
[321997120,1712678582908,-500.0,0.00019178,2]
[321997121,1712678582935,-500.0,0.00019178,2]
[321997122,1712678582959,-500.0,0.00019178,2]
[321997123,1712678582981,-500.0,0.00019178,2]
[321997124,1712678583005,-500.0,0.00019178,2]
[321997125,1712678583027,-500.0,0.00019178,2]
[321997126,1712678583049,-500.0,0.00019178,2]
[321997127,1712678583074,-500.0,0.00019178,2]
[321997128,1712678583096,-500.0,0.00019178,2]
[321997129,1712678583121,-500.0,0.00019178,2]
[321997130,1712678583143,-500.0,0.00019178,2]
[321997131,1712678583167,-500.0,0.00019178,2]
[321997132,1712678583190,-500.0,0.00019178,2]
[321997133,1712678583216,-675.34,0.00019178,2]
[321997134,1712678583238,-500.0,0.00019178,2]
[321997135,1712678583259,-500.0,0.00019178,2]
[321997136,1712678583280,-501.58194141,0.00019178,2]
[321997137,1712678583301,-500.0,0.00019178,2]
[321997138,1712678583321,-500.0,0.00019178,2]
[321997139,1712678583342,-595.25,0.00019178,2]
[321997140,1712678583362,-500.0,0.00019178,2]
[321997141,1712678583383,-586.83,0.00019178,2]
[321997142,1712678583405,-500.0,0.00019178,2]
[321997143,1712678583426,-556.62,0.00019178,2]
[321997144,1712678583448,-500.0,0.00019178,2]
[321997145,1712678583470,-500.0,0.00019178,2]
[321997146,1712678583492,-500.0,0.00019178,2]
[321997147,1712678583513,-661.68,0.00019178,2]
[321997148,1712678583537,-592.31,0.00019178,2]
[321997149,1712678583560,-500.0,0.00019178,2]
[321997150,1712678583582,-500.0,0.00019178,2]
[321997151,1712678583603,-500.0,0.00019178,2]
[321997152,1712678583628,-712.24,0.00019178,2]
[321997153,1712678583649,-500.0,0.00019178,2]
[321997154,1712678583671,-500.0,0.00019178,2]
[321997155,1712678583691,-500.0,0.00019178,2]
[321997156,1712678583714,-706.5,0.00019178,2]
[321997157,1712678583735,-500.0,0.00019178,2]
[321997158,1712678583756,-309.68787435,0.00019178,2]
[321997159,1712678583777,-500.0,0.00019178,2]
[321997160,1712678583801,-544.21,0.00019178,2]
[321997161,1712678583823,-500.0,0.00019178,2]
[321997162,1712678583846,-765.73,0.00019178,2]
[321997163,1712678583870,-500.0,0.00019178,2]
[321997164,1712678583892,-688.42,0.00019178,2]
[321997165,1712678583913,-500.0,0.00019178,2]
[321997166,1712678583935,-749.95,0.00019178,2]
[321997167,1712678583958,-500.0,0.00019178,2]
[321997168,1712678583979,-500.0,0.00019178,2]
[321997169,1712678584001,-500.0,0.00019178,2]
[321997170,1712678584025,-663.88,0.00019178,2]
[321997171,1712678584048,-2080.58,0.00019178,2]
[321997172,1712678584072,-500.0,0.00019178,2]
[321997173,1712678584093,-500.0,0.00019178,2]
[321997174,1712678584114,-776.53,0.00019178,2]
[321997175,1712678584133,-500.0,0.00019178,2]
[321997176,1712678584156,-576.17,0.00019178,2]
[321997177,1712678584176,-500.0,0.00019178,2]
[321997178,1712678584197,-1422.94,0.00019178,2]
[321997179,1712678584219,-793.47,0.00019178,2]
[321997180,1712678584241,-917.32,0.00019178,2]
[321997181,1712678584261,-500.0,0.00019178,2]
[321997182,1712678584281,-577.52,0.00019178,2]
[321997183,1712678584302,-500.0,0.00019178,2]
[321997184,1712678584325,-6056.71,0.00019178,2]
[321997185,1712678584346,-1847.94,0.00019178,2]
[321997186,1712678584368,-203.82,0.00019178,2]
[321997187,1712678584388,-1287.16,0.00019178,2]
[321997188,1712678584408,-500.0,0.00019178,2]
[321997189,1712678584430,-500.0,0.00019178,2]
[321997190,1712678584453,-500.0,0.00019178,2]
[321997191,1712678584474,-500.0,0.00019178,2]
[321997192,1712678584496,-633.48,0.00019178,2]
[321997193,1712678584518,-2513.71,0.00019178,2]
[321997194,1712678584541,-1022.02,0.00019178,2]
[321997195,1712678584563,-16598.9,0.00019178,2]
[321997196,1712678584585,-2793.02,0.00019178,2]
[321997197,1712678584605,-591.73,0.00019178,2]
[321997198,1712678584626,-500.0,0.00019178,2]
[321997199,1712678584648,-500.0,0.00019178,2]
[321997200,1712678584670,-1725.47,0.00019178,2]
[321997201,1712678584693,-659.77,0.00019178,2]
[321997202,1712678584717,-24753.72,0.00019178,2]
[321997203,1712678584737,-500.0,0.00019178,2]
[321997204,1712678584758,-5036.72,0.00019178,2]
[321997205,1712678584780,-1885.45,0.00019178,2]
[321997206,1712678584802,-500.0,0.00019178,2]
[321997207,1712678585030,-1504.97,0.00019178,2]
[321997208,1712678585055,-500.0,0.00019178,2]
[321997209,1712678585087,-1988.55,0.00019178,2]
[321997210,1712678585109,-2716.11,0.00019178,2]
[321997211,1712678585130,-3967.8,0.00019178,2]
[321997212,1712678585151,-500.0,0.00019178,2]
[321997213,1712678585172,-500.0,0.00019178,2]
[321997214,1712678585193,-799.01,0.00019178,2]
[321997215,1712678585215,-554.07,0.00019178,2]
[321997216,1712678585237,-6883.52,0.00019178,2]
[321997217,1712678585258,-1459.44,0.00019178,2]
[321997218,1712678585279,-586.09,0.00019178,2]
[321997219,1712678585301,-500.0,0.00019178,2]
[321997220,1712678585322,-501.55610615,0.00019178,2]
[321997221,1712678585343,-500.0,0.00019178,2]
[321997222,1712678585364,-500.0,0.00019178,2]
[321997223,1712678585385,-985.75,0.00019178,2]
[321997224,1712678585406,-500.0,0.00019178,2]
[321997225,1712678585429,-578.67,0.00019178,2]
[321997226,1712678585456,-3897.67,0.00019178,2]
[321997227,1712678585478,-500.0,0.00019178,2]
[321997228,1712678585499,-500.0,0.00019178,2]
[321997229,1712678585520,-500.0,0.00019178,2]
[321997230,1712678585542,-1384.68,0.00019178,2]
[321997231,1712678585562,-509.05,0.00019178,2]
[321997232,1712678585584,-500.0,0.00019178,2]
[321997233,1712678585605,-500.0,0.00019178,2]
[321997234,1712678585627,-500.0,0.00019178,2]
[321997235,1712678585648,-1596.47,0.00019178,2]
[321997236,1712678585669,-500.0,0.00019178,2]
[321997237,1712678585690,-500.0,0.00019178,2]
[321997238,1712678585711,-1094.24,0.00019178,2]
[321997239,1712678585733,-3591.43,0.00019178,2]
[321997240,1712678585755,-500.0,0.00019178,2]
[321997241,1712678585777,-907.55,0.00019178,2]
[321997242,1712678585799,-500.0,0.00019178,2]
[321997243,1712678585821,-1719.88,0.00019178,2]
[321997244,1712678585843,-1366.23,0.00019178,2]
[321997245,1712678585865,-2792.25,0.00019178,2]
[321997246,1712678585888,-500.0,0.00019178,2]
[321997247,1712678585910,-1151.71,0.00019178,2]
[321997248,1712678585932,-517.06688817,0.00019178,2]
[321997249,1712678585955,-500.0,0.00019178,2]
[321997250,1712678585977,-500.0,0.00019178,2]
[321997251,1712678586001,-6527.27,0.00019178,2]
[321997252,1712678586022,-501.91180942,0.00019178,2]
[321997253,1712678586043,-500.0,0.00019178,2]
[321997254,1712678586068,-15422.31,0.00019178,2]
[321997255,1712678586090,-500.0,0.00019178,2]
[321997256,1712678586111,-500.0,0.00019178,2]
[321997257,1712678586133,-500.0,0.00019178,2]
[321997258,1712678586155,-500.0,0.00019178,2]
[321997259,1712678586175,-500.0,0.00019178,2]
[321997260,1712678586195,-445.60761417,0.00019178,2]
[321997261,1712678586217,-1323.15,0.00019178,2]
[321997262,1712678586239,-825.07,0.00019178,2]
[321997263,1712678586260,-2725.1,0.00019178,2]
[321997264,1712678586280,-635.08713214,0.00019178,2]
[321997265,1712678586301,-1096.86,0.00019178,2]
[321997266,1712678586323,-500.0,0.00019178,2]
[321997267,1712678586343,-500.0,0.00019178,2]
[321997268,1712678586365,-882.2,0.00019178,2]
[321997269,1712678586387,-500.0,0.00019178,2]
[321997270,1712678586409,-4501.57,0.00019178,2]
[321997271,1712678586432,-375.5656389,0.00019178,2]
[321997272,1712678586458,-1187.13,0.00019178,2]
[321997273,1712678586480,-500.0,0.00019178,2]
[321997274,1712678586507,-500.0,0.00019178,2]
[321997275,1712678586529,-629.67,0.00019178,2]
[321997276,1712678586551,-541.49,0.00019178,2]
[321997277,1712678586573,-500.0,0.00019178,2]
[321997278,1712678586594,-500.0,0.00019178,2]
[321997279,1712678586615,-500.0,0.00019178,2]
[321997280,1712678586636,-835.12,0.00019178,2]
[321997281,1712678586658,-1283.49,0.00019178,2]
[321997282,1712678586679,-500.0,0.00019178,2]
[321997283,1712678586702,-500.0,0.00019178,2]
[321997284,1712678586723,-2275.93,0.00019178,2]
[321997285,1712678586745,-1358.69,0.00019178,2]
[321997286,1712678586766,-500.0,0.00019178,2]
[321997287,1712678586788,-9473.13,0.00019178,2]
[321997288,1712678586809,-500.0,0.00019178,2]
[321997289,1712678586831,-500.0,0.00019178,2]
[321997290,1712678586852,-500.0,0.00019178,2]
[321997291,1712678586874,-500.0,0.00019178,2]
[321997292,1712678586897,-1356.32,0.00019178,2]
[321997293,1712678586919,-1307.65,0.00019178,2]
[321997294,1712678586940,-560.38,0.00019178,2]
[321997295,1712678586962,-500.0,0.00019178,2]
[321997296,1712678586983,-880.96,0.00019178,2]
[321997297,1712678587004,-500.0,0.00019178,2]
[321997298,1712678587025,-500.0,0.00019178,2]
[321997299,1712678587046,-2494.4,0.00019178,2]
[321997300,1712678587070,-500.0,0.00019178,2]
[321997301,1712678587094,-1116.54,0.00019178,2]
[321997302,1712678587117,-682.44,0.00019178,2]
[321997303,1712678587141,-3654.84,0.00019178,2]
[321997304,1712678587162,-500.0,0.00019178,2]
[321997305,1712678587183,-500.0,0.00019178,2]
[321997306,1712678587206,-500.0,0.00019178,2]
[321997307,1712678587226,-500.0,0.00019178,2]
[321997308,1712678587248,-500.0,0.00019178,2]
[321997309,1712678587270,-500.0,0.00019178,2]
[321997310,1712678587293,-2197.44,0.00019178,2]
[321997311,1712678587315,-500.0,0.00019178,2]
[321997312,1712678587340,-500.0,0.00019178,2]
[321997313,1712678587362,-500.0,0.00019178,2]
[321997314,1712678587384,-500.0,0.00019178,2]
[321997315,1712678587404,-500.0,0.00019178,2]
[321997316,1712678587426,-1955.57,0.00019178,2]
[321997317,1712678587447,-500.0,0.00019178,2]
[321997318,1712678587469,-515.04,0.00019178,2]
[321997319,1712678587490,-2046.07,0.00019178,2]
[321997320,1712678587510,-1572.0,0.00019178,2]
[321997321,1712678587532,-500.0,0.00019178,2]
[321997322,1712678587554,-500.0,0.00019178,2]
[321997323,1712678587575,-500.0,0.00019178,2]
[321997324,1712678587596,-1354.98,0.00019178,2]
[321997325,1712678587619,-500.0,0.00019178,2]
[321997326,1712678587640,-555.73,0.00019178,2]
[321997327,1712678587661,-500.0,0.00019178,2]
[321997328,1712678587684,-861.76,0.00019178,2]
[321997329,1712678587706,-617.38,0.00019178,2]
[321997330,1712678587726,-514.79449862,0.00019178,2]
[321997331,1712678587749,-500.0,0.00019178,2]
[321997332,1712678587770,-1807.34,0.00019178,2]
[321997333,1712678587792,-500.0,0.00019178,2]
[321997334,1712678587813,-599.1,0.00019178,2]
[321997335,1712678587833,-1482.35,0.00019178,2]
[321997336,1712678587856,-500.0,0.00019178,2]
[321997337,1712678587880,-500.0,0.00019178,2]
[321997338,1712678587902,-500.0,0.00019178,2]
[321997339,1712678587924,-6065.99,0.00019178,2]
[321997340,1712678587946,-500.0,0.00019178,2]
[321997341,1712678587972,-500.0,0.00019178,2]
[321997342,1712678587994,-500.0,0.00019178,2]
[321997343,1712678588016,-500.0,0.00019178,2]
[321997344,1712678588038,-564.39,0.00019178,2]
[321997345,1712678588064,-1304.86,0.00019178,2]
[321997346,1712678588086,-2142.78,0.00019178,2]
[321997347,1712678588109,-732.3,0.00019178,2]
[321997348,1712678588133,-500.0,0.00019178,2]
[321997349,1712678588160,-500.0,0.00019178,2]
[321997350,1712678588183,-500.0,0.00019178,2]
[321997351,1712678588208,-867.56,0.00019178,2]
[321997352,1712678588231,-500.0,0.00019178,2]
[321997353,1712678588253,-2553.1,0.00019178,2]
[321997354,1712678588276,-570.28,0.00019178,2]
[321997355,1712678588297,-500.0,0.00019178,2]
[321997356,1712678588320,-500.0,0.00019178,2]
[321997357,1712678588341,-500.0,0.00019178,2]
[321997358,1712678588364,-528.2,0.00019178,2]